Department Family,Entity,Date,Fiscal Date,Expense Type,Expense Area,Supplier,Transaction Number,AP Amount,VAT Registration Number,Purchase Invoice Number
Department of Health,Derbyshire Healthcare NHS Foundation Trust,31/08/2022,31/08/2022,AUC Additions,Balance Sheet,BOXXE LTD,43215663,26540.8,GB 734 2452 48,121571
Department of Health,Derbyshire Healthcare NHS Foundation Trust,31/08/2022,31/08/2022,Trade Local Debtors Adj,Balance Sheet,VODAFONE LTD,43229650,73796.4,GB 569 9532 77,101715217
Department of Health,Derbyshire Healthcare NHS Foundation Trust,31/08/2022,31/08/2022,SPECIALTY TRAINING - ST4,CountyN Training Grades,NOTTINGHAMSHIRE HEALTHCARE NHS TRUST,43260115,73151.45,654406833,1000056069
Department of Health,Derbyshire Healthcare NHS Foundation Trust,31/08/2022,31/08/2022,SPECIALTY TRAINING - ST4,CountyN Training Grades,NOTTINGHAMSHIRE HEALTHCARE NHS TRUST,43260118,63672.51,654406833,1000056171
Department of Health,Derbyshire Healthcare NHS Foundation Trust,31/08/2022,31/08/2022,Training Expenses,CPD Workforce Devel,SYSTEMIC FACTORS LTD,43287292,43240,GB937088003,SF00171
Department of Health,Derbyshire Healthcare NHS Foundation Trust,31/08/2022,31/08/2022,AUC Additions,Balance Sheet,BELPER DEVELOPMENTS LTD,43311791,45600,3111147746,01016
Department of Health,Derbyshire Healthcare NHS Foundation Trust,31/08/2022,31/08/2022,Agency Admin & Clerical,Temporary Staff Control,SERVICE CARE SOLUTIONS LTD,43312601,54724.6,853479002,WK18SCS2223
Department of Health,Derbyshire Healthcare NHS Foundation Trust,31/08/2022,31/08/2022,Independent Sector,DerbyshireSubstanceMisuse,INTUITIVE THINKING SKILLS LTD,43347486,39018.9,GB857566181,13557
Department of Health,Derbyshire Healthcare NHS Foundation Trust,31/08/2022,31/08/2022,Independent Sector,DerbyshireSubstanceMisuse,INTUITIVE THINKING SKILLS LTD,43347492,27872.4,GB857566181,13555
Department of Health,Derbyshire Healthcare NHS Foundation Trust,31/08/2022,31/08/2022,Independent Sector,DerbyshireSubstanceMisuse,INTUITIVE THINKING SKILLS LTD,43347520,39018.9,GB857566181,13641
Department of Health,Derbyshire Healthcare NHS Foundation Trust,31/08/2022,31/08/2022,Income tax - Current,Balance Sheet,INLAND REVENUE CIS,43367602,1160326.19,,507PX001657472304
Department of Health,Derbyshire Healthcare NHS Foundation Trust,31/08/2022,31/08/2022,National Insurance - Curr,Balance Sheet,INLAND REVENUE CIS,43367602,1514441.41,,507PX001657472304
Department of Health,Derbyshire Healthcare NHS Foundation Trust,31/08/2022,31/08/2022,AUC Additions,Balance Sheet,WILLIAM BAILEY LTD,43386603,95079.94,,10565
Department of Health,Derbyshire Healthcare NHS Foundation Trust,31/08/2022,31/08/2022,Agency Admin & Clerical,Temporary Staff Control,ATHONA LTD,43387789,26559.57,GB848352111,WK19ATH2223
Department of Health,Derbyshire Healthcare NHS Foundation Trust,31/08/2022,31/08/2022,Agency Admin & Clerical,Temporary Staff Control,SERVICE CARE SOLUTIONS LTD,43387795,113731.99,853479002,WK19SCS2223
Department of Health,Derbyshire Healthcare NHS Foundation Trust,31/08/2022,31/08/2022,AUC Additions,Balance Sheet,THORLUX LIGHTING,43398220,35928.81,109939440,002301119
Department of Health,Derbyshire Healthcare NHS Foundation Trust,31/08/2022,31/08/2022,Obligations under IFRS16 Right of Use Leased Assets (Non -Current),Balance Sheet,CHESTERFIELD ROYAL HOSPITAL NHS FOUNDATION TRUST,43418753,28895,654915709,4562914
Department of Health,Derbyshire Healthcare NHS Foundation Trust,31/08/2022,31/08/2022,SrvcsRecd-FoundationTrust,CHRoyal Facilities SLA,CHESTERFIELD ROYAL HOSPITAL NHS FOUNDATION TRUST,43418753,33667,654915709,4562914
Department of Health,Derbyshire Healthcare NHS Foundation Trust,31/08/2022,31/08/2022,Bldg Ctrcts - PFI Svc Chg,Kingsway PFI,ARDEN PARTNERSHIP (DERBY) LTD,43418921,102768.32,911330964,SI0187
Department of Health,Derbyshire Healthcare NHS Foundation Trust,31/08/2022,31/08/2022,Contingent rents,BTL,ARDEN PARTNERSHIP (DERBY) LTD,43418921,89030.27,911330964,SI0187
Department of Health,Derbyshire Healthcare NHS Foundation Trust,31/08/2022,31/08/2022,Finance Lease & HP NCurr,Balance Sheet,ARDEN PARTNERSHIP (DERBY) LTD,43418921,79312.05,911330964,SI0187
Department of Health,Derbyshire Healthcare NHS Foundation Trust,31/08/2022,31/08/2022,Interest Payable,BTL,ARDEN PARTNERSHIP (DERBY) LTD,43418921,95025.42,911330964,SI0187
Department of Health,Derbyshire Healthcare NHS Foundation Trust,31/08/2022,31/08/2022,Othr Prepay&AccrIncmNCurr,Balance Sheet,ARDEN PARTNERSHIP (DERBY) LTD,43418921,48451.97,911330964,SI0187
Department of Health,Derbyshire Healthcare NHS Foundation Trust,31/08/2022,31/08/2022,Independent Sector,Derby Substance Misuse,AQUARIUS ACTION PROJECTS,43419027,46895,,CUSTINV00149856
Department of Health,Derbyshire Healthcare NHS Foundation Trust,31/08/2022,31/08/2022,AUC Additions,Balance Sheet,INTEGRATED HEALTH PROJECTS,43419461,312414.35,830007284,22080003
Department of Health,Derbyshire Healthcare NHS Foundation Trust,31/08/2022,31/08/2022,AUC Additions,Balance Sheet,INTEGRATED HEALTH PROJECTS,43440851,234508.67,830007284,22280004
Department of Health,Derbyshire Healthcare NHS Foundation Trust,31/08/2022,31/08/2022,AUC Additions,Balance Sheet,BELPER DEVELOPMENTS LTD,43441387,34200,3111147746,01024
Department of Health,Derbyshire Healthcare NHS Foundation Trust,31/08/2022,31/08/2022,Stocks Finished Goods,Balance Sheet,ALLIANCE HEALTHCARE DISTRIBUTION LTD,43469860,30029.37,GB386334767,2023WK18PHAL
Department of Health,Derbyshire Healthcare NHS Foundation Trust,31/08/2022,31/08/2022,Independent Sector,Acute OofA + Step Down,RICHMOND FELLOWSHIP,43509656,27384,451177263,CUSTINV00145275
Department of Health,Derbyshire Healthcare NHS Foundation Trust,31/08/2022,31/08/2022,Independent Sector,DerbyshireSubstanceMisuse,INTUITIVE THINKING SKILLS LTD,43509659,27872.4,GB857566181,13639
Department of Health,Derbyshire Healthcare NHS Foundation Trust,31/08/2022,31/08/2022,Independent Sector,DerbyshireSubstanceMisuse,DERBYSHIRE ALCOHOL ADVICE SERVICE,43509662,46599,,20222310
Department of Health,Derbyshire Healthcare NHS Foundation Trust,31/08/2022,31/08/2022,Speciality Training - ST2,CountyS Training Grades,ST HELENS & KNOWSLEY HOSPITALS NHS TRUST,43549427,50000,654943996,16815095
Department of Health,Derbyshire Healthcare NHS Foundation Trust,31/08/2022,31/08/2022,AUC Additions,Balance Sheet,NHS ARDEN AND GEM CSU,43549454,33447.39,,7312625652
Department of Health,Derbyshire Healthcare NHS Foundation Trust,31/08/2022,31/08/2022,Agency Admin & Clerical,Temporary Staff Control,ATHONA LTD,43556490,52897.99,GB848352111,WK21ATH2223
Department of Health,Derbyshire Healthcare NHS Foundation Trust,31/08/2022,31/08/2022,Agency Admin & Clerical,Temporary Staff Control,PULSE HEALTHCARE LTD,43556494,45986.2,676285493,WK21PUL2223
Department of Health,Derbyshire Healthcare NHS Foundation Trust,31/08/2022,31/08/2022,Agency Admin & Clerical,Temporary Staff Control,SERVICE CARE SOLUTIONS LTD,43556495,60579.62,853479002,WK21SCS2223
Department of Health,Derbyshire Healthcare NHS Foundation Trust,31/08/2022,31/08/2022,SrvcsRecd-FoundationTrust,Covid-19,UNIVERSITY HOSPITALS OF DERBY & BURTON NHS FOUNDATION TRUST,43567297,97125,654 9679 76,800030040
Department of Health,Derbyshire Healthcare NHS Foundation Trust,31/08/2022,31/08/2022,Drugs,DerbyshireSubstanceMisuse,NHS BUSINESS SERVICES AUTHORITY,43567302,34716.4,GB 654 4347 29,1000072961
Department of Health,Derbyshire Healthcare NHS Foundation Trust,31/08/2022,31/08/2022,Drugs,FP10 Drugs,NHS BUSINESS SERVICES AUTHORITY,43567302,174563.34,GB 654 4347 29,1000072961
Department of Health,Derbyshire Healthcare NHS Foundation Trust,31/08/2022,31/08/2022,Drugs,DerbyshireSubstanceMisuse,NHS BUSINESS SERVICES AUTHORITY,43567325,42054.91,GB 654 4347 29,1000073294
Department of Health,Derbyshire Healthcare NHS Foundation Trust,31/08/2022,31/08/2022,Drugs,FP10 Drugs,NHS BUSINESS SERVICES AUTHORITY,43567325,164010.16,GB 654 4347 29,1000073294
Department of Health,Derbyshire Healthcare NHS Foundation Trust,31/08/2022,31/08/2022,SrvcsRecd-FoundationTrust,P and I Contracts,DERBYSHIRE COMMUNITY HEALTH SERVICES NHS FOUNDATION TRUST,43567326,146585,654441286,600000905
Department of Health,Derbyshire Healthcare NHS Foundation Trust,31/08/2022,31/08/2022,Drugs,DerbyshireSubstanceMisuse,NHS BUSINESS SERVICES AUTHORITY,43567331,37390.6,GB 654 4347 29,1000073624
Department of Health,Derbyshire Healthcare NHS Foundation Trust,31/08/2022,31/08/2022,Drugs,FP10 Drugs,NHS BUSINESS SERVICES AUTHORITY,43567331,178613.75,GB 654 4347 29,1000073624
Department of Health,Derbyshire Healthcare NHS Foundation Trust,31/08/2022,31/08/2022,Independent Sector,Acute OofA + Step Down,RUSHCLIFFE INDEPENDENT HOSPITAL,43605741,177320,,DCC37
Department of Health,Derbyshire Healthcare NHS Foundation Trust,31/08/2022,31/08/2022,Independent Sector,IAPT,DERWENT RURAL COUNSELLING SERVICES,43605753,157776.28,,23851
